Cogmind - Beta 13 @@@ ROGUE MODE // 2024.05.18 @ 17:15:33 Player: mrwizrd Result: Destroyed by L-31 Rogue with Katana Performance ------------- Evolutions (2) 1000 Regions Visited (3) 600 Robots Destroyed (24) 120 Value Destroyed (628) 628 Prototype IDs (0) 0 Alien Tech Used (0) 0 Bonus (0) 0 TOTAL SCORE: 2348 Bonus ------- None Cogmind --------- Core Integrity 0/550 Matter 290/300 Energy 68/100 System Corruption 0% Temperature Cool (38) Movement Core (250) Ox4 Location -8/Materials Parts ------- > --- POWER (1) -------- (None) > --- PROPULSION (3) --- (None) > --- UTILITY (4) ------ Medium Storage Unit Visual Processing Unit Signal Interpreter Terrain Scan Processor > --- WEAPON (3) ------- Spread Laser > --- INVENTORY (10) --- Improved Heat Sink Terrain Scan Processor Peak State ------------ > --- POWER ------------ Light Deuterium Engine > --- PROPULSION ------- Aluminum Leg Aluminum Leg Flight Unit > --- UTILITY ---------- Improved Heat Sink Medium Storage Unit Signal Interpreter Terrain Scan Processor > --- WEAPON ----------- Particle Gun Spread Laser Heavy Particle Cannon > --- INVENTORY -------- Ion Engine Improved Ion Engine Aluminum Leg Terrain Scan Processor [Rating: 20] Favorites ----------- Power Light Deuterium Engine Engine Light Deuterium Engine Propulsion Aluminum Leg Treads Light Treads Leg Aluminum Leg Flight Unit Flight Unit Utility Signal Interpreter Device Improved Heat Sink Storage Medium Storage Unit Processor Signal Interpreter Protection Propulsion Shielding Weapon Spread Laser Energy Gun Spread Laser Energy Cannon Heavy Particle Cannon Ballistic Gun Light Assault Rifle Special Weapon Welding Torch Special Melee Weapon Improved Datajack Build | -11 -10 -9 -8 ------- Run | Yrd Mat Mat Mat Slots Evolved 4 | . . 2 2 Power . | . . . . Propulsion 1 | . . 1 . Utility 2 | . . 1 1 Weapon 1 | . . . 1 Parts Attached 49 | 7 15 10 17 Power 11 | 2 4 1 4 Engine 11 | 2 4 1 4 Core . | . . . . Reactor . | . . . . Propulsion 15 | 2 4 4 5 Treads 2 | 2 . . . Leg 10 | . 2 3 5 Wheel . | . . . . Hover . | . . . . Flight 3 | . 2 1 . Utility 9 | 1 2 3 3 Device 1 | . . . 1 Storage 2 | 1 . 1 . Processor 3 | . . 1 2 Hackware . | . . . . Protection 3 | . 2 1 . Artifact . | . . . . Weapon 14 | 2 5 2 5 Energy Gun 7 | . 3 1 3 Energy Cannon 1 | . . . 1 Ballistic Gun 4 | 2 1 1 . Ballistic Cannon . | . . . . Launcher . | . . . . Special Weapon 1 | . 1 . . Impact Weapon . | . . . . Slashing Weapon . | . . . . Piercing Weapon . | . . . . Special Melee Weapon 1 | . . . 1 Unidentified Prototypes . | . . . . Parts Lost 15 | . 1 3 11 Power 3 | . . . 3 Propulsion 4 | . . . 4 Utility 2 | . . 2 . Weapon 6 | . 1 1 4 Highest Loss Streak 8 | . 1 2 8 To Critical Strikes . | . . . . Average Slot Usage (%) 96 | . 94 95 97 Engine 9 | . 14 11 8 Leg 18 | . 18 22 17 Flight 8 | . 8 10 8 Device 5 | . . . 7 Storage 8 | . 14 2 9 Processor 15 | . . 10 18 Protection 3 | . 10 17 . Energy Gun 16 | . 14 11 17 Energy Cannon 6 | . . . 8 Ballistic Gun 2 | . 11 8 . Naked Turns . | . . . . Heaviest Build 28 | 13 23 23 28 Greatest Support 40 | 40 40 20 20 Greatest Overweight (x) 5 | 3 2 1 5 Average Overweight (x) . | . . . . Largest Inventory Capacity 10 | 8 8 10 10 Average Capacity 9 | 7 8 6 10 Most Carried 8 | 6 8 8 6 Average Carried 4 | 3 6 4 4 Final Capacity 10 | 8 8 10 10 Final Carried 8 | 6 8 4 2 Class Distribution -------------------- 62% | Scavenger-Gunner 30% | Mutant 4% | Scavenger-Skirmisher Dominant Class ---------------- Mutant | -10/Materials Mutant | -9/Materials Scavenger-Gunner | -8/Materials Resources | -11 -10 -9 -8 ----------- Run | Yrd Mat Mat Mat Matter Collected 758 | 171 302 154 131 Remotely . | . . . . Salvage Created 667 | . 308 170 189 Parts 45 | . 22 12 11 Haulers Intercepted . | . . . . Recyclers Shooed . | . . . . Parts Field Recycled . | . . . . Retrieved Matter . | . . . . Parts Self-Destructed . | . . . . Prevented . | . . . . Kills | -11 -10 -9 -8 ------- Run | Yrd Mat Mat Mat Combat Hostiles Destroyed 20 | . 11 5 4 Guns 19 | . 11 5 3 Cannons 1 | . . . 1 Classes Destroyed 6 | . 3 2 1 Tunneler 1 | . 1 . . Watcher 3 | . . 2 1 Swarmer 8 | . 5 3 . Grunt 9 | . 6 . 3 Brawler 1 | . . . 1 Sentry 2 | . . 2 . Best Kill Streak 4 | . 4 4 2 Combat Bots Only 4 | . 4 4 2 Max Kills in Single Turn 2 | . 2 1 1 Gunslinging 1 | . 1 . . Exploded . | . . . . Melee . | . . . . Uniques/NPCs Destroyed . | . . . . Combat | -11 -10 -9 -8 -------- Run | Yrd Mat Mat Mat Hostile Shots Fired 199 | . 60 31 108 Missed 40 | . 10 3 27 Damage Taken 2383 | . 461 354 1568 Core 700 | . 98 44 558 Absorbed by Shields . | . . . . Redirected to Shielding 54 | . 35 19 . Core Remaining (%) 83 | 100 60 89 . Volleys Fired 88 | . 34 31 23 Largest 3 | . 2 2 3 Hottest 205 | . 130 85 205 Shots Fired 126 | . 57 36 33 Gun 118 | . 57 36 25 Cannon 8 | . . . 8 Launcher . | . . . . Special . | . . . . Kinetic 55 | . 29 26 . Thermal 71 | . 28 10 33 Explosive . | . . . . Electromagnetic . | . . . . Robot Hit Streak 8 | . 8 6 7 Robot Miss Streak 5 | . 5 4 4 Penetration Max . | . . . . Secondary Targets 3 | . 3 . . Max Gunslinging Chain 1 | . 1 . . Shots Hit Robots 89 | . 39 23 27 Core Hits 55 | . 28 12 15 Critical Kills 1 | . 1 . . Critical Parts Destroyed . | . . . . Critical Strikes 2 | . 1 . 1 Burn 1 | . . . 1 Destroy 1 | . 1 . . Melee Attacks 3 | . . . 3 Impact . | . . . . Slashing . | . . . . Piercing . | . . . . Sneak Attacks . | . . . . Combat Hostiles . | . . . . Follow-up Attacks . | . . . . Damage Inflicted 1226 | . 460 305 461 Guns 1079 | . 460 298 321 Cannons 125 | . . . 125 Explosions . | . . . . Melee . | . . . . Ramming 22 | . . 7 15 Kinetic 355 | . 181 174 . Thermal 849 | . 279 124 446 Explosive . | . . . . Electromagnetic . | . . . . Impact . | . . . . Slashing . | . . . . Piercing . | . . . . Highest Corruption . | . . . . Average Corruption . | . . . . Corruption Purged . | . . . . Corruption Blocked . | . . . . Overload Shots . | . . . . Overflow Damage . | . . . . Projectiles . | . . . . Explosions . | . . . . Melee . | . . . . Knockbacks . | . . . . Impact . | . . . . Kinetic . | . . . . Secondary . | . . . . Self-Inflicted Damage 1 | . . . 1 Shots . | . . . . Rammed 3 | . . . 3 Targets Rammed 16 | . . 3 13 Kicked 13 | . . 3 10 Crushed . | . . . . Highest Temperature 372 | . 372 213 329 Average Temperature 114 | . 107 91 132 Received Heat Transfer 789 | . 87 81 621 Effects 5 | . 3 . 2 Shutdowns 1 | . 1 . . Energy Bleed 1 | . 1 . . Interference 2 | . . . 2 Matter Decay 1 | . 1 . . Siege Activations . | . . . . Robots Corrupted . | . . . . Combat Hostiles . | . . . . Parts Fried . | . . . . Impact Corruptions . | . . . . Robots Melted . | . . . . Combat Hostiles . | . . . . Parts Melted 6 | . 2 1 3 Heat Transferred 1736 | . 604 296 836 Parts Sabotaged . | . . . . Parts Stolen . | . . . . Parts Stripped . | . . . . Power Chain Reactions . | . . . . Alert | -11 -10 -9 -8 ------- Run | Yrd Mat Mat Mat Peak Influence 185 | . 185 137 46 Initial 3 | . . . 3 Average 16 | . 44 58 4 Maximum Alert Level . | . . . . Low Security (%) 100 | 100 100 100 100 Level 1 . | . . . . Level 2 . | . . . . Level 3 . | . . . . Level 4 . | . . . . Level 5 . | . . . . High Security . | . . . . Max Security . | . . . . Squads Dispatched 4 | . 2 . 2 Investigation 2 | . 1 . 1 Extermination . | . . . . Reinforcement 2 | . 1 . 1 Assault . | . . . . Garrison . | . . . . Intercept . | . . . . Searches Triggered . | . . . . Construction Impeded . | . . . . Haulers Reinforced . | . . . . Active Scanning Responses . | . . . . Cargo Convoy Interrupts . | . . . . Stealth | -11 -10 -9 -8 --------- Run | Yrd Mat Mat Mat Distress Signals 6 | . . 2 4 Communications Jammed . | . . . . Distress Signals . | . . . . Times Spotted 53 | . 16 10 27 Peak Tracking Total 17 | . 5 5 17 Tactical Retreats 2 | . . 1 1 Traps | -11 -10 -9 -8 ------- Run | Yrd Mat Mat Mat Traps Triggered 1 | . 1 . . Indirectly . | . . . . Trap Hack Attempts . | . . . . Triggered . | . . . . Disarmed . | . . . . Reprogrammed . | . . . . Reused . | . . . . Traps Extracted . | . . . . Installed . | . . . . Triggered . | . . . . Machines | -11 -10 -9 -8 ---------- Run | Yrd Mat Mat Mat Machines Disabled . | . . . . Max in Single Turn . | . . . . Machines Repaired . | . . . . Machines Dismantled . | . . . . Machines Sabotaged . | . . . . Overloaded Fab Kills . | . . . . Hacking | -11 -10 -9 -8 --------- Run | Yrd Mat Mat Mat Machines Accessed 5 | . 2 2 1 Terminals 4 | . 2 1 1 Fabricators . | . . . . Repair Stations . | . . . . Recycling Units 1 | . . 1 . Scanalyzers . | . . . . Garrison Access . | . . . . Total Hacks 16 | . 6 7 3 Successful 6 | . 3 3 . Failed 10 | . 3 4 3 Catastrophic 3 | . 1 1 1 Database Lockouts . | . . . . Manual 11 | . 5 6 . Terminals 14 | . 6 5 3 Fabricators . | . . . . Repair Stations . | . . . . Recycling Units 2 | . . 2 . Scanalyzers . | . . . . Garrison Access . | . . . . Terminal Hacks 5 | . 3 2 . Unreport Threat 4 | . 2 2 . Locate Traps 1 | . 1 . . Fabricator Hacks . | . . . . Repair Station Hacks . | . . . . Recycling Unit Hacks 1 | . . 1 . Recycle Component 1 | . . 1 . Scanalyzer . | . . . . Garrison Access Hacks . | . . . . Unauthorized Hacks . | . . . . Terminals . | . . . . Fabricators . | . . . . Repair Stations . | . . . . Recycling Units . | . . . . Scanalyzers . | . . . . Garrison Access . | . . . . Data Cores Recovered . | . . . . Used . | . . . . Hacking Detections 6 | . 3 2 1 Full Trace Events 4 | . 2 1 1 Feedback Events . | . . . . Feedback Blocked . | . . . . Robot Schematics Acquired . | . . . . Robots Built . | . . . . Authchips . | . . . . Time . | . . . . Total Robot Build Rating . | . . . . Part Schematics Acquired . | . . . . Parts Built . | . . . . Authchips . | . . . . Time . | . . . . Total Part Build Rating . | . . . . Parts Repaired . | . . . . Time . | . . . . Parts Recycled 1 | . . 1 . Recycled Matter . | . . . . Retrieved Matter . | . . . . Retrieved Components . | . . . . Parts Scanalyzed . | . . . . Part Schematics Acquired . | . . . . Parts Damaged . | . . . . Bothacking | -11 -10 -9 -8 ------------ Run | Yrd Mat Mat Mat Used RIF Installer . | . . . . Robots Hacked 1 | . . . 1 Non-combat . | . . . . Combat 1 | . . . 1 Robot Hacks Applied 1 | . . . 1 parse_system 1 | . . . 1 Relay Couplers Released . | . . . . Fabnet Peak Effective % . | . . . . Robots Rewired . | . . . . Allies Hacked . | . . . . Hacks Repelled . | . . . . Allies | -11 -10 -9 -8 -------- Run | Yrd Mat Mat Mat Total Allies . | . . . . Largest Group . | . . . . Highest-Rated Group . | . . . . Highest-Rated Ally . | . . . . Total Orders . | . . . . Ally Attacks . | . . . . Total Damage . | . . . . Kills . | . . . . Allies Corrupted . | . . . . Allies Melted . | . . . . Intel | -11 -10 -9 -8 ------- Run | Yrd Mat Mat Mat Robot Analysis Total . | . . . . Derelict Logs Recovered . | . . . . Drone Launches . | . . . . Drone Recoveries . | . . . . Exploration | -11 -10 -9 -8 ------------- Run | Yrd Mat Mat Mat Turns Passed 4085 | 146 548 474 2917 Spaces Moved 1032 | 86 327 248 371 Core 15 | 13 . . 2 Treads 88 | 73 15 . . Legs 845 | . 228 248 369 Wheels . | . . . . Hover . | . . . . Flight 84 | . 84 . . Fastest Speed 50 | 50 117 120 120 Average Speed 150 | 152 132 121 183 Slowest Speed 300 | 200 197 190 300 Overloaded Moves . | . . . . Propulsion Burnouts . | . . . . Robots Hopped . | . . . . Cave-ins Triggered . | . . . . Exploration Rate (%) 21 | 5 37 21 23 Regions Visited 3 Branch Regions . Pre-discovered Areas . | . . . . Known Exits Taken 1 | . . 1 . Unknown Exits Taken 2 | 1 1 . . Scrap Searched . | . . . . Spaces Dug . | . . . . Terrain Destroyed 2 | . . . 2 Melee . | . . . . Projectile 2 | . . . 2 AOE . | . . . . Terrain Rammed . | . . . . Walls Destroyed . | . . . . Machines Disabled . | . . . . Actions | -11 -10 -9 -8 --------- Run | Yrd Mat Mat Mat Total 3435 | 97 385 386 2567 Wait 2217 | . . 82 2135 Move 1029 | 85 326 247 371 Hop . | . . . . Pick Up 18 | 5 4 6 3 Fast Attach 16 | 6 4 . 6 Attach 11 | . . 5 6 Detach 2 | . 1 1 . Swap 22 | 1 11 5 5 Drop 13 | . 5 6 2 Fire 88 | . 34 31 23 Melee 3 | . . . 3 Ram 3 | . . . 3 Kick 13 | . . 3 10 Crush . | . . . . Escape Stasis . | . . . . Rewire . | . . . . Trap . | . . . . Miscellaneous . | . . . . Route ------- -11/Scrapyard -10/Materials -9/Materials (discovered 2 exits: *Mat / *Min) -8/Materials History --------- Turn | Location | Event 17 | -11/Scrapyard | Discovered new exit (range 16) 147 | -11/Scrapyard | Entered Materials 304 | -10/Materials | Build established: Mutant 685 | -10/Materials | Discovered new exit (range 4) 695 | -10/Materials | Entered another Materials area 695 | -9/Materials | Evolved 2 slots: Propulsion x1, Utility x1 701 | -9/Materials | Discovered new exit (range 7) 712 | -9/Materials | Identified exit to Mines 1136 | -9/Materials | Discovered new exit (range 6) 1145 | -9/Materials | Identified exit to Materials 1169 | -9/Materials | Entered another Materials area 1169 | -8/Materials | Evolved 2 slots: Utility x1, Weapon x1 1259 | -8/Materials | Lost 3 parts (1n2w) 1632 | -8/Materials | Build established: Scavenger-Gunner 4064 | -8/Materials | Core integrity fell below 50% 4079 | -8/Materials | Core integrity fell below 20% 4086 | -8/Materials | Destroyed by L-31 Rogue with Katana Last Messages --------------- ALERT: Hostiles spotted, dispatching reinforcements to Terminal M005. Critical hit (Burn: +37). B-36 Bruiser destroyed. Hvy. Particle Cannon destroyed. Acquired 10 matter. Imp. Ion Engine destroyed. Acquired 5 matter. Acquired 10 matter. Kicked G-47 Trooper. Aluminum Leg severed. Kicked G-47 Trooper. Ion Engine destroyed. Kicked G-47 Trooper. Kicked L-31 Rogue. Aluminum Leg severed. Slammed into L-31 Rogue. Destabilizing: Core damaged (-16). Slammed into L-31 Rogue. Acquired Spread Laser. Critical hit (Burn: +37). Map ----- +----------------------------------------------------+ | ?????????????????????????????????????????????????? | | ?????????????????????????????????????????????????? | | ?????????????????????????????????????????????????? | | ?????????????????????????????????????????????????? | | ?????????????????????????????????????????????????? | | ?????????????????????????????????????????????????? | | ?????????????????????????????????????????????????? | | ?????????????????????????????????????????????????? | | ?????????????????????????????????????????????????? | | ?????????????????????????????????????????????????? | | ?????????????????????????????????????????????????? | | ?????????????????????????????????????????????????? | | ?????????????????????????????????????????????????? | | ?????????????????????????????????????????????????? | | ?????????????? ??????????????????????????????????? | | ????????????? ?????????????????????????????????? | | ?????????????# ?????????????????????????????????? | | ?????????????# "????????????????????????????????? | | ????????????## %#########???????????????????????? | | ????????????# #???????????????????????? | | ????????????# #???????????????????????? | | ????????????# === #???????????????????????? | | ????????????# === #???????????????????????? | | ????????????# == #???????????????????????? | | ??????????????# %%########+##?????????????? | | ??????????????# =l@g%g*gg ??????? | | ??????????????# g#######ag ??????? | | ?????????? # #???????????????????????? | | ??????! t = #???????????????????????? | | ????????? # !%""" #???????????????????????? | | ??????????????## """"" #???????????????????????? | | ???????????????# """"" #???????????????????????? | | ???????????????# """""%*#???????????????????????? | | ????????######## """ #???????????????????????? | | ?????? #???????????????????????? | | ?????? +???????????????????????? | | ?????? #???????????????????????? | | ????????###############"+#???????????????????????? | | ???????????# #???????????????????????? | | ???????????# #???????????????????????? | | ???????????# """ #???????????????????????? | | ??????????## ]]! """ #???????????????????????? | | ??????????# ]]! """ #???????????????????????? | | ??????????## ]!! #???????????????????????? | | ???????????#########+##########??????????????????? | | ?????##+########## ! #????????????? | | ???? ########??????????????????? | | ???? T #?????????????????????????? | | ???? #?????????????????????????? | | ????###+########## #?????????????????????????? | +----------------------------------------------------+ Best States ------------- Heat Dissipation 45 Energy Generation 14 Energy Capacity 265 Matter Stores 300 Matter Capacity 300 Sight Range 18 Terrain Scan Density 85 Armor Coverage 225 Propulsion Shielding 33 Evasion (%) 55 Recoil Reduction 2 Item Schematics ----------------- None Robot Schematics ------------------ None Fabricated ------------ Nothing Alien Tech Used ----------------- None Achievements -------------- None Challenges ------------ None Game ------ Seed NeutronLightScanner Manual? 0 Play Time 00:37:53 Cumulative 18.9 hours Start 2024.05.18 @ 15:51:53 End 2024.05.18 @ 17:15:33 Sessions 1 Manual Loads 0 Difficulty Rogue Special Mode None Game No. 22 Rogue 22 Adventurer 0 Explorer 0 Win Type - Total 0 Types 0/0/0/0/0/0/0/0/0 Lore% 10 Gallery% 13 Achievement% 12 Wizard Run 0 Options --------- Layout 0 ASCII 0 Keyboard 1 Movement Arrows Keybinds 0 Fullscreen 2 Font 24/Crisp Map View 76x50 Zoom Use 0% Tactical HUD 0 Map Filters NONE Filters NONE Steam 1 RUN: d07c19a2-2802-426a-a407-2b2678367ec7